bitfinex/quotes_SOLUSD_20250919
["timestamp","ask_amount","ask_price","bid_price","bid_amount"]
[1758309792504,2.31007808,238.08,238.07,37.24044524]
[1758309794808,2.83429496,238.1,238.07,37.24044524]
[1758309794987,5.14437304,238.09,238.07,37.24044524]
[1758309795188,2.31007808,238.09,238.07,4.20044524]
[1758309795390,2.31007808,238.09,238.08,33.02]
[1758309795789,2.31007808,238.09,238.08,32.34]
[1758309796092,2.31007808,238.09,238.08,46.61559401]
[1758309796093,2.83429496,238.09,238.08,46.61559401]
[1758309796590,2.83429496,238.1,238.08,46.61559401]
[1758309796791,2.83429496,238.1,238.09,0.68]
[1758309796990,2.83429496,238.1,238.09,4.8800924]
[1758309797399,2.31007808,238.11,238.09,4.8800924]
[1758309797601,2.31007808,238.11,238.1,33.02]
[1758309797913,5.14042981,238.11,238.1,33.02]
[1758309798901,2.31007808,238.11,238.1,33.02]
[1758309799094,5.14042981,238.11,238.1,37.219916]
[1758309799310,2.31007808,238.11,238.1,50.81551001]
[1758309799698,2.82909082,238.12,238.1,50.81551001]
[1758309799893,2.82907191,238.12,238.11,0.68]
[1758309801417,2.82907191,238.12,238.11,4.87973961]
[1758309802403,2.82907191,238.12,238.11,32.34]
[1758309803203,2.82907191,238.12,238.11,33.02]
[1758309803399,2.82907191,238.12,238.11,37.21973961]
[1758309804313,33.51007808,238.13,238.11,37.21973961]
[1758309804520,133.4,238.16,238.12,0.68]
[1758309804712,5.13685827,238.15,238.13,13.59559401]
[1758309804908,5.13685827,238.15,238.14,33.02]
[1758309805097,2.31007808,238.15,238.14,33.02]
[1758309805414,2.31007808,238.15,238.14,4.87921054]
[1758309805621,0.1,238.17,238.14,37.21921054]
[1758309805807,2.31007808,238.16,238.15,0.66]
[1758309806422,2.31007808,238.16,238.15,33.0]
[1758309806604,2.31007808,238.16,238.15,32.34]
[1758309807623,2.31007808,238.16,238.15,36.53903422]
[1758309809209,2.92678019,238.17,238.15,36.53903422]
[1758309809419,2.31007808,238.16,238.15,36.53903422]
[1758309809928,2.31007808,238.16,238.15,36.51903422]
[1758309810114,2.31007808,238.16,238.15,37.17903422]
[1758309811628,0.1,238.17,238.15,37.17903422]
[1758309811832,2.31007808,238.16,238.15,50.77462823]
[1758309815027,0.1,238.17,238.15,53.70140842]
[1758309815331,2.41007808,238.17,238.16,0.66]
[1758309815631,0.1,238.17,238.16,14.25559401]
[1758309815817,0.1,238.17,238.16,46.57559401]
[1758309816318,0.1,238.17,238.16,59.20584346]
[1758309816817,0.1,238.17,238.16,63.40470137]
[1758309818136,0.1,238.17,238.16,31.08470137]
[1758309818338,0.1,238.17,238.16,63.40470137]
[1758309818715,0.1,238.17,238.16,36.51885791]
[1758309818915,0.1,238.17,238.14,4.19913107]
[1758309819115,2.31007808,238.16,238.14,4.19913107]
[1758309819429,2.31007808,238.16,238.15,32.32]
[1758309820005,2.31007808,238.16,238.15,36.51903422]
[1758309823935,2.31007808,238.16,238.13,0.66]
[1758309823936,2.31007808,238.16,238.14,17.79480455]
[1758309824235,2.31007808,238.15,238.14,18.45480455]
[1758309824440,2.31007808,238.15,238.14,50.77480455]
[1758309825439,0.1,238.17,238.14,50.77480455]
[1758309825620,2.31007808,238.15,238.14,50.77480455]
[1758309827537,0.1,238.17,238.14,50.77480455]
[1758309827841,0.1,238.17,238.15,0.66]
[1758309828042,0.1,238.17,238.16,32.3]
[1758309828221,0.1,238.17,238.16,32.96]
[1758309829241,2.41007808,238.17,238.16,32.96]
[1758309829542,2.41007808,238.17,238.16,37.15885791]
[1758309831768,2.41007808,238.17,238.16,4.85885791]
[1758309832064,2.41007808,238.17,238.15,4.19903422]
[1758309832245,2.31007808,238.16,238.15,17.79462823]
[1758309832426,2.31007808,238.16,238.15,50.75462823]
[1758309833743,2.31007808,238.16,238.15,50.09462823]
[1758309834120,2.31007808,238.16,238.15,50.75462823]
[1758309836361,2.31007808,238.16,238.15,18.45462823]
[1758309836656,2.31007808,238.16,238.15,50.75462823]
[1758309837861,2.31007808,238.16,238.15,18.45462823]
[1758309838041,2.31007808,238.16,238.15,50.75462823]
[1758309841932,0.1,238.17,238.15,50.75462823]
[1758309842261,2.31007808,238.16,238.15,50.09462823]
[1758309842847,2.31007808,238.16,238.15,50.75462823]
[1758309844155,36.83776883,238.16,238.12,13.050291]
[1758309844352,0.1,238.17,238.13,32.3]
[1758309844666,2.93062805,238.17,238.13,32.96]
[1758309844832,2.93062805,238.17,238.14,0.66]
[1758309845034,0.1,238.17,238.15,32.3]
[1758309845259,2.93062805,238.17,238.15,32.3]
[1758309845558,33.51007808,238.16,238.15,32.3]
[1758309845756,31.2,238.16,238.15,37.15903422]
[1758309845964,2.31007808,238.16,238.15,37.15903422]
[1758309848356,5.14291055,238.16,238.15,37.15903422]
[1758309849159,5.14291055,238.16,238.15,36.49903422]
[1758309849566,5.14291055,238.16,238.15,37.15903422]
[1758309850264,2.31007808,238.16,238.15,37.15903422]
[1758309851269,2.31007808,238.16,238.15,36.49903422]
[1758309851445,5.1443027,238.16,238.15,37.15903422]
[1758309852146,5.6443027,238.16,238.13,4.19936788]
[1758309852346,2.83422462,238.15,238.14,32.3]
[1758309852663,5.1443027,238.15,238.14,32.3]
[1758309853754,4.31234896,238.15,238.14,32.3]
[1758309854077,4.31234896,238.15,238.13,4.19936788]
[1758309854371,31.2,238.16,238.14,32.3]
[1758309854664,2.83537721,238.15,238.14,32.3]
[1758309854857,2.83537721,238.15,238.14,36.49921054]
[1758309855163,2.83537721,238.15,238.14,50.75480455]
[1758309855552,4.31350155,238.15,238.14,50.75480455]
[1758309856455,1.47812434,238.15,238.14,50.75480455]
[1758309856653,4.31317854,238.15,238.14,50.75480455]
[1758309859270,1.47812434,238.15,238.14,50.75480455]
[1758309860068,1.47812434,238.15,238.12,4.19956324]
[1758309860372,2.83545234,238.14,238.13,32.3]
[1758309860968,2.83545234,238.14,238.13,37.15938688]
[1758309861603,4.31357668,238.14,238.13,37.15938688]
[1758309863880,1.47812434,238.14,238.13,37.15938688]
[1758309866281,1.47812434,238.14,238.13,4.85938688]
[1758309866489,1.47812434,238.14,238.13,37.13938688]
[1758309868992,0.1,238.17,238.13,37.13938688]
[1758309869289,1.47812434,238.14,238.13,4.19938688]
[1758309869462,1.47812434,238.14,238.13,36.47938688]
[1758309869665,0.1,238.17,238.13,47.6778541]
[1758309869862,1.47812434,238.14,238.13,46.9778541]
[1758309870083,1.47812434,238.14,238.13,60.57344811]
[1758309870285,0.1,238.17,238.13,61.27344811]
[1758309870593,1.47812434,238.14,238.13,60.57344811]
[1758309871087,1.47812434,238.14,238.13,61.27344811]
[1758309875205,1.47812434,238.14,238.13,50.77498089]
[1758309877900,0.1,238.17,238.13,50.77498089]
[1758309878076,1.47812434,238.14,238.13,50.77498089]
[1758309881398,0.1,238.17,238.13,50.77498089]
[1758309881694,1.47812434,238.14,238.13,50.07498089]
[1758309882083,0.1,238.17,238.13,50.07498089]
[1758309882299,1.47812434,238.14,238.13,50.07498089]
[1758309882791,1.47812434,238.14,238.13,50.77498089]
[1758309883795,0.1,238.17,238.13,61.27344811]
[1758309884111,1.47812434,238.15,238.14,14.29559401]
[1758309884298,4.31468892,238.15,238.14,14.29559401]
[1758309885300,4.31468892,238.15,238.14,18.49480455]
[1758309886910,1.47812434,238.15,238.14,18.49480455]
[1758309890998,4.3145163,238.15,238.14,50.77480455]
[1758309897212,2.83639196,238.15,238.14,50.77480455]
[1758309897390,4.3145163,238.15,238.14,50.77480455]
[1758309898209,4.3145163,238.15,238.14,50.07480455]
[1758309898385,4.3145163,238.15,238.14,50.76480455]
[1758309898586,4.3145163,238.15,238.14,17.79480455]
[1758309898913,4.3145163,238.15,238.14,50.05480455]
[1758309899091,4.3145163,238.15,238.14,17.79480455]
[1758309899290,4.3145163,238.15,238.14,50.05480455]
[1758309899711,4.3145163,238.15,238.14,17.79480455]
[1758309899896,4.3145163,238.15,238.14,50.05480455]
[1758309900306,4.3145163,238.15,238.14,4.19921054]
[1758309900508,4.8145163,238.15,238.14,36.45921054]
[1758309900710,4.3145163,238.15,238.14,36.45921054]
[1758309900906,4.3145163,238.15,238.14,4.19921054]
[1758309901113,4.3145163,238.15,238.14,36.45921054]
[1758309903015,4.3145163,238.15,238.14,32.26]
[1758309903612,2.83639196,238.15,238.14,32.26]
[1758309903809,4.3145163,238.15,238.14,32.26]
[1758309905110,4.3145163,238.15,238.14,36.45921054]
[1758309906700,4.3145163,238.15,238.14,37.17921054]
[1758309907304,0.1,238.17,238.14,47.67723691]
[1758309907599,1.47812434,238.15,238.14,60.55283092]
[1758309907999,1.47812434,238.15,238.14,61.27283092]
[1758309908721,1.47812434,238.15,238.14,29.01283092]
[1758309908914,1.47812434,238.15,238.14,61.27283092]
[1758309911515,1.47812434,238.15,238.14,60.55283092]
[1758309911696,1.47812434,238.15,238.14,28.29283092]
[1758309911898,1.47812434,238.15,238.14,50.05480455]
[1758309912825,1.47812434,238.15,238.14,50.77480455]
[1758309913833,2.30863303,238.15,238.14,61.27283092]
[1758309916430,0.1,238.17,238.14,61.27283092]
[1758309916637,2.30863303,238.15,238.14,61.27283092]
[1758309920230,2.30863303,238.15,238.14,4.19921054]
[1758309920419,5.14499943,238.15,238.14,4.19921054]
[1758309920615,5.14499943,238.15,238.14,36.45921054]
[1758309921232,2.8363664,238.15,238.14,50.77480455]
[1758309921434,2.30863303,238.16,238.15,13.59559401]
[1758309921728,5.14483127,238.16,238.15,14.31559401]
[1758309921936,5.14483127,238.16,238.15,46.57559401]
[1758309922227,5.14483127,238.16,238.15,50.77462823]
[1758309924335,5.14483127,238.16,238.15,18.51462823]
[1758309924537,5.14483127,238.16,238.15,50.05462823]
[1758309924730,5.14483127,238.16,238.15,50.03462823]
[1758309925029,5.14483127,238.16,238.15,50.75462823]
[1758309926027,5.14483127,238.16,238.15,50.03462823]
[1758309926236,5.14483127,238.16,238.15,50.75462823]
[1758309926939,5.14483127,238.16,238.15,18.51462823]
[1758309927135,5.14483127,238.16,238.15,50.03462823]
[1758309928642,5.14483127,238.16,238.15,50.75462823]
[1758309929326,2.30863303,238.16,238.15,50.75462823]
[1758309930342,5.14470218,238.16,238.15,50.75462823]
[1758309931237,5.14470218,238.16,238.15,36.43903422]
[1758309931547,2.83606915,238.16,238.15,36.43903422]
[1758309931732,5.14470218,238.16,238.15,36.43903422]
[1758309932134,2.30863303,238.16,238.15,36.43903422]
[1758309932443,5.14473129,238.16,238.15,36.43903422]
[1758309935048,5.14473129,238.16,238.15,37.15903422]
[1758309935544,5.14473129,238.16,238.15,36.43903422]
[1758309936662,5.14473129,238.16,238.15,37.15903422]
[1758309938937,2.83609826,238.16,238.15,37.15903422]
[1758309939234,5.14473129,238.16,238.15,37.15903422]
[1758309940138,5.14473129,238.16,238.15,4.91903422]
[1758309940342,5.14473129,238.16,238.15,37.15903422]
[1758309940558,5.14473129,238.16,238.15,4.91903422]
[1758309940734,5.14473129,238.16,238.15,37.15903422]
[1758309941155,2.83609826,238.16,238.15,37.15903422]
[1758309941362,5.14473129,238.16,238.15,37.15903422]
[1758309941833,2.83609826,238.16,238.15,37.15903422]
[1758309942146,5.14473129,238.16,238.15,37.15903422]
[1758309942326,5.14473129,238.16,238.15,50.75462823]
[1758309942726,5.14473129,238.16,238.15,55.89935952]
[1758309943753,5.14473129,238.16,238.15,50.75462823]
[1758309945244,5.14473129,238.16,238.15,55.89935952]
[1758309945636,5.14473129,238.16,238.15,50.75462823]
[1758309949964,5.14473129,238.16,238.15,55.89935952]
[1758309950767,2.83609826,238.16,238.15,55.89935952]
[1758309950950,5.14473129,238.16,238.15,55.89935952]
[1758309951143,5.14473129,238.16,238.15,23.65935952]
[1758309951366,5.14473129,238.16,238.15,55.89935952]
[1758309952258,5.14473129,238.16,238.15,50.75462823]
[1758309954059,5.14473129,238.16,238.15,55.89935952]
[1758309954555,5.14473129,238.16,238.15,50.75462823]
[1758309955433,5.14473129,238.16,238.15,55.89935952]
[1758309956268,5.14473129,238.16,238.15,50.75462823]
[1758309956564,5.14473129,238.16,238.15,55.89935952]
[1758309962166,2.83609826,238.16,238.15,55.89935952]
[1758309962352,5.14473129,238.16,238.15,55.89935952]
[1758309962559,2.83609826,238.16,238.15,55.89935952]
[1758309962875,0.1,238.17,238.16,13.59559401]
[1758309963084,2.40863303,238.17,238.16,45.81559401]
[1758309963258,5.24598833,238.17,238.16,45.81559401]
[1758309963569,5.24598833,238.17,238.16,59.14584345]
[1758309963944,5.24598833,238.17,238.16,12.63024944]
[1758309964164,5.24598833,238.17,238.16,49.04910735]
[1758309964371,5.24598833,238.17,238.16,16.82910735]
[1758309964545,5.24598833,238.17,238.16,49.04910735]
[1758309965964,5.24598833,238.17,238.16,49.74910735]
[1758309966156,5.24598833,238.17,238.16,63.34470136]
[1758309966852,2.9373553,238.17,238.16,63.34470136]
[1758309970359,0.1,238.17,238.16,63.34470136]
[1758309977075,0.1,238.17,238.16,31.12470136]
[1758309977268,0.1,238.17,238.16,63.34470136]
[1758309980287,0.1,238.17,238.16,16.82910735]
[1758309980471,2.93596161,238.17,238.16,36.41885791]
[1758309980862,4.41348383,238.17,238.16,38.1031039]
[1758309981072,4.91348383,238.17,238.16,4.19885791]
[1758309981284,4.91348383,238.17,238.16,36.41885791]
[1758309981781,4.41348383,238.17,238.16,36.41885791]
[1758309983775,35.61348383,238.17,238.16,4.19885791]
[1758309983987,36.11348383,238.17,238.16,36.41885791]
[1758309984778,4.41348383,238.17,238.16,36.41885791]
[1758309984984,35.61348383,238.17,238.16,36.41885791]
[1758309987881,35.61348383,238.17,238.16,32.22]
[1758309988887,35.61348383,238.17,238.16,36.41885791]
[1758309990279,4.41348383,238.17,238.16,36.41885791]
[1758309990873,35.61348383,238.17,238.16,36.41885791]
[1758309994883,4.91348383,238.17,238.16,32.2]
[1758309995098,4.91348383,238.17,238.11,11.21920161]
[1758309995265,1.47752222,238.12,238.11,28.05344605]
[1758309995589,1.47752222,238.12,238.11,60.25344605]
[1758309995994,1.47752222,238.12,238.11,28.05344605]
[1758309996289,1.47752222,238.12,238.11,60.25344605]
[1758309996471,1.47752222,238.12,238.11,28.05344605]
[1758309996669,1.47752222,238.12,238.11,47.61894122]
[1758310000396,1.47752222,238.12,238.11,50.45259071]
[1758310001399,1.47752222,238.13,238.11,50.45259071]
[1758310001570,31.2,238.15,238.12,0.72]
[1758310001766,1.47752222,238.14,238.13,32.2]
[1758310001970,1.47752222,238.14,238.13,32.92]
[1758310002382,1.47752222,238.14,238.13,37.11938688]
[1758310002584,0.1,238.17,238.13,47.6178541]
[1758310002765,0.1,238.17,238.14,0.72]
[1758310002977,1.47752222,238.15,238.14,0.72]
[1758310003288,1.47752222,238.15,238.14,32.92]
[1758310003788,0.1,238.17,238.14,32.92]
[1758310003993,1.57752222,238.17,238.15,0.72]
[1758310004208,4.4106181,238.17,238.16,32.92]
[1758310004372,1.57752222,238.17,238.16,36.39885791]
[1758310004967,1.57752222,238.17,238.16,37.11885791]
[1758310005490,4.41068835,238.17,238.16,37.11885791]
[1758310007394,4.41069446,238.17,238.16,37.11885791]
[1758310012381,0.1,238.17,238.16,37.11885791]
[1758310012774,0.1,238.17,238.16,49.75017093]
[1758310016584,0.1,238.17,238.16,63.34576494]
[1758310021303,0.1,238.17,238.16,17.55017093]
[1758310021498,0.1,238.17,238.16,16.83017093]
[1758310021717,0.1,238.17,238.16,36.39885791]
[1758310021905,0.1,238.17,238.16,38.08310389]
[1758310022205,1.57752222,238.17,238.16,38.74310389]
[1758310022780,1.57752222,238.17,238.16,37.05885791]
[1758310023304,0.1,238.17,238.16,37.05885791]
[1758310023507,1.57752222,238.17,238.16,37.05885791]
[1758310024889,0.1,238.17,238.16,37.05885791]
[1758310034701,0.1,238.17,238.16,4.85885791]
[1758310034921,0.1,238.17,238.16,37.03885791]
[1758310035322,0.1,238.17,238.16,39.87163917]
[1758310035524,1.57752222,238.17,238.16,39.87163917]
[1758310035914,0.1,238.17,238.16,39.87163917]
[1758310036213,0.1,238.17,238.16,53.46723318]
[1758310038121,1e-08,238.17,238.16,53.46723318]
[1758310039416,1e-08,238.17,238.16,21.28723318]
[1758310039617,1e-08,238.17,238.16,53.46723318]
[1758310040325,1e-08,238.17,238.16,21.28723318]
[1758310040531,1e-08,238.17,238.16,53.46723318]
[1758310041023,2.40773479,238.23,238.17,13.59559401]
[1758310041228,2.40773479,238.23,238.19,13.59559401]
[1758310041532,2.40773479,238.23,238.2,32.84]
[1758310041752,2.40773479,238.23,238.21,0.66]
[1758310041926,2.40773479,238.23,238.22,32.18]
[1758310042120,2.40773479,238.23,238.22,32.84]
[1758310042320,2.40773479,238.23,238.22,37.03780035]
[1758310042723,2.40773479,238.23,238.22,39.44553514]
[1758310043217,0.1,238.23,238.22,39.44553514]
[1758310043525,1e-08,238.23,238.22,53.04112915]
[1758310046333,1e-08,238.25,238.23,13.59559401]
[1758310046632,1e-08,238.25,238.24,45.77559401]
[1758310046843,1e-08,238.25,238.24,46.49559401]
[1758310047131,1e-08,238.25,238.24,48.17891858]
[1758310047338,1e-08,238.27,238.25,15.9033288]
[1758310047509,0.1,238.3,238.26,13.59559401]
[1758310047714,0.1,238.3,238.28,13.59559401]
[1758310047915,0.1,238.3,238.29,45.75559401]
[1758310048325,0.1,238.31,238.29,50.67216121]
[1758310048533,0.1,238.31,238.3,0.72]
[1758310049639,0.1,238.31,238.3,17.64696954]
[1758310050215,0.1,238.31,238.3,21.84336064]
[1758310053732,0.1,238.31,238.3,34.33559731]
[1758310058272,0.1,238.31,238.3,66.49559731]
[1758310062676,1e-08,238.31,238.3,66.49559731]
[1758310063976,1e-08,238.31,238.3,34.33559731]
[1758310064147,1e-08,238.31,238.3,66.49559731]
[1758310065981,1e-08,238.31,238.3,34.33559731]
[1758310066176,1e-08,238.31,238.3,66.49559731]
[1758310068584,1e-08,238.31,238.3,147.29559731]
[1758310073754,1e-08,238.31,238.3,115.13559731]
[1758310073981,1e-08,238.31,238.3,147.27559731]
[1758310074761,1e-08,238.31,238.3,115.13559731]
[1758310074961,1e-08,238.31,238.3,147.27559731]
[1758310077478,1e-08,238.31,238.3,149.5833321]
[1758310078173,1e-08,238.31,238.3,147.27559731]
[1758310079293,1e-08,238.31,238.3,68.7833321]
[1758310080870,1e-08,238.31,238.3,149.5833321]
[1758310083466,1e-08,238.31,238.3,147.27559731]
[1758310083667,1e-08,238.31,238.3,149.5833321]
[1758310087986,1e-08,238.31,238.3,147.27559731]
[1758310088289,1e-08,238.31,238.3,149.5833321]
[1758310089985,1e-08,238.31,238.3,117.4433321]
[1758310090171,1e-08,238.31,238.3,149.5833321]
[1758310094706,1e-08,238.39,238.31,13.59559401]
[1758310094997,1e-08,238.4,238.36,13.59559401]
[1758310095302,1e-08,238.4,238.37,46.82305574]
[1758310095791,1e-08,238.4,238.39,15.9033288]
[1758310095997,1e-08,238.4,238.39,48.0433288]
[1758310096491,1e-08,238.4,238.39,49.72566219]
[1758310097199,1e-08,238.4,238.39,53.92046901]
[1758310097784,1e-08,238.4,238.39,53.08628793]
[1758310097990,1.57355371,238.47,238.4,13.59559401]
[1758310098288,0.1,238.47,238.41,32.14]
[1758310098690,0.1,238.49,238.41,32.14]
[1758310098691,1.47355371,238.49,238.42,15.06914772]
[1758310098876,0.1,238.55,238.42,13.59559401]
[1758310099072,1.47355371,238.47,238.44,14.67874517]
[1758310099278,1.47355371,238.45,238.44,14.67874517]
[1758310099484,1.47355371,238.45,238.44,46.83874517]
[1758310100001,1.47355371,238.46,238.44,46.83874517]
[1758310100380,7.576336,238.54,238.44,46.83874517]
[1758310100699,1.47355371,238.46,238.44,46.83874517]
[1758310101686,3.52803425,238.54,238.44,46.83874517]
[1758310101886,0.1,238.55,238.44,46.83874517]
[1758310101887,31.2,238.51,238.44,46.83874517]
[1758310102084,1.47355371,238.47,238.44,46.83874517]
[1758310102791,31.2,238.52,238.44,46.83874517]
[1758310103499,1.47355371,238.49,238.44,46.83874517]
[1758310103684,31.2,238.53,238.44,46.83874517]
[1758310103993,31.2,238.53,238.44,14.67874517]
[1758310103994,1.47355371,238.45,238.44,14.67874517]
[1758310104302,1.47355371,238.45,238.44,36.33392719]
[1758310107510,43.81856191,238.51,238.44,36.33392719]
[1758310107716,1.47355371,238.45,238.44,36.33392719]
[1758310110191,43.81856191,238.51,238.44,36.33392719]
[1758310110387,1.47355371,238.45,238.44,36.33392719]
[1758310110793,1.47355371,238.45,238.38,10.48719701]
[1758310111012,32.67355371,238.39,238.38,4.1949828]
[1758310111310,31.2,238.39,238.37,4.19514523]
[1758310111493,1.47355371,238.38,238.37,4.19514523]
[1758310111820,1.47355371,238.38,238.33,4.19586287]
[1758310111999,31.2,238.39,238.34,32.16]
[1758310112310,31.2,238.39,238.33,4.19586287]
[1758310112608,31.2,238.39,238.34,32.18]
[1758310112923,2.82691155,238.38,238.33,4.19586287]
[1758310113085,31.2,238.37,238.34,32.18]
[1758310113285,1.47355371,238.35,238.34,32.18]
[1758310113488,31.2,238.39,238.34,32.18]
[1758310113719,1.47355371,238.35,238.34,32.18]
[1758310114910,1.47355371,238.35,238.34,37.08568683]
[1758310115311,1.47355371,238.36,238.34,47.57490391]
[1758310116993,1.47355371,238.36,238.34,14.68490391]
[1758310117198,1.47355371,238.36,238.35,32.18]
[1758310119402,34.02591418,238.41,238.35,47.5742878]
[1758310119722,1.47355371,238.38,238.35,47.5742878]
[1758310120020,1.47355371,238.38,238.36,0.71]
[1758310120522,1.47355371,238.38,238.37,32.18]
[1758310120724,12.62174727,238.46,238.37,34.36355371]
[1758310120725,1.47355371,238.44,238.37,34.36355371]
[1758310120898,31.2,238.43,238.38,0.71]
[1758310121216,1.47355371,238.43,238.39,0.71]
[1758310121421,1.47355371,238.43,238.4,0.71]
[1758310121608,1.47355371,238.43,238.41,32.18]
[1758310121921,1.47355371,238.43,238.42,32.18]
[1758310122115,1.47355371,238.43,238.42,32.89]
[1758310122803,1.47355371,238.45,238.42,32.89]
[1758310123011,1.47355371,238.45,238.42,32.18]
[1758310123720,1.47355371,238.43,238.42,32.18]
[1758310124219,1.47355371,238.43,238.42,36.374279]
[1758310124605,1.47355371,238.43,238.42,4.194279]
[1758310124913,1.47355371,238.43,238.42,32.16]
[1758310126312,1.47355371,238.43,238.42,36.354279]
[1758310128528,2.82510407,238.47,238.42,36.354279]
[1758310128707,1.47355371,238.43,238.42,36.354279]
[1758310129809,1.47355371,238.43,238.42,32.16]
[1758310130521,1.47355371,238.43,238.42,36.354279]
[1758310130724,2.82510407,238.47,238.42,36.354279]
[1758310130930,1.47355371,238.43,238.42,36.354279]
[1758310131714,2.82510407,238.47,238.42,36.354279]
[1758310131937,1.47355371,238.43,238.42,36.354279]
[1758310133125,1.47355371,238.43,238.42,37.064279]
[1758310134718,1.47355371,238.43,238.37,0.71]
[1758310134922,1.47355371,238.38,238.37,0.71]
[1758310135135,1.47355371,238.38,238.37,32.87]
[1758310135331,3.54123209,238.48,238.37,32.87]
[1758310135332,1.47355371,238.4,238.37,32.87]
[1758310135512,1.47355371,238.4,238.38,0.7]
[1758310135839,1.47355371,238.4,238.39,32.88]
[1758310136840,1.47355371,238.4,238.39,37.07480682]
[1758310138423,1.47355371,238.4,238.39,4.89480682]
[1758310138626,1.47355371,238.4,238.39,37.05480682]
[1758310139939,1.47355371,238.4,238.39,4.89480682]
[1758310140132,1.47355371,238.4,238.39,37.05480682]
[1758310141930,2.82565414,238.42,238.39,37.05480682]
[1758310142141,1.47355371,238.4,238.39,37.05480682]
[1758310142827,2.82565414,238.44,238.39,37.05480682]
[1758310143020,1.47355371,238.4,238.39,37.05480682]
[1758310144542,1.47355371,238.4,238.39,37.06480682]
[1758310145346,1.47355371,238.4,238.39,47.55182389]
[1758310146144,2.82565414,238.44,238.39,47.55182389]
[1758310146318,1.47355371,238.4,238.39,46.84182389]
[1758310146930,1.47355371,238.4,238.39,47.55182389]
[1758310151729,1.47355371,238.4,238.39,36.35480682]
[1758310152442,1.47355371,238.4,238.39,4.19480682]
[1758310152744,32.67355371,238.4,238.39,36.33480682]
[1758310152948,35.50162258,238.4,238.39,36.33480682]
[1758310153531,35.50162258,238.4,238.39,32.14]
[1758310153738,35.50162258,238.4,238.39,36.33480682]
[1758310154319,4.30162258,238.4,238.39,36.33480682]
[1758310154523,1.47355371,238.4,238.39,36.33480682]
[1758310154729,4.30162258,238.4,238.39,36.33480682]
[1758310154932,1.47355371,238.4,238.39,36.33480682]
[1758310155131,4.30162258,238.4,238.39,36.33480682]
[1758310155331,1.47355371,238.4,238.39,36.33480682]
[1758310155749,4.30162258,238.4,238.39,36.33480682]
[1758310155945,2.82806887,238.41,238.39,36.33480682]
[1758310156143,4.30162258,238.4,238.39,36.33480682]
[1758310156338,1.47355371,238.4,238.39,36.33480682]
[1758310156547,1.47355371,238.4,238.39,37.04480682]
[1758310156731,4.30162258,238.4,238.39,37.04480682]
[1758310157049,1.47355371,238.4,238.39,37.04480682]
[1758310157344,4.30162258,238.4,238.39,37.04480682]
[1758310157649,2.82806887,238.4,238.39,37.04480682]
[1758310158027,2.82806887,238.41,238.39,37.04480682]
[1758310158226,2.82806887,238.4,238.39,36.33480682]
[1758310158435,2.82806887,238.41,238.39,36.33480682]
[1758310158635,2.82806887,238.4,238.39,36.33480682]
[1758310158859,2.82806887,238.41,238.39,37.04480682]
[1758310159051,1.47355371,238.42,238.39,37.04480682]
[1758310159052,2.82806887,238.4,238.39,36.33480682]
[1758310159757,2.82806887,238.4,238.39,37.04480682]
[1758310160658,2.82806887,238.4,238.39,4.90480682]
[1758310160841,2.82806887,238.4,238.39,37.04480682]
[1758310162232,2.82806887,238.4,238.39,4.90480682]
[1758310162531,2.82806887,238.4,238.39,37.04480682]
[1758310176888,2.82806887,238.4,238.39,4.90480682]
[1758310177174,2.82806887,238.4,238.39,37.04480682]
[1758310179851,2.82806887,238.4,238.39,4.90480682]
[1758310180151,2.82806887,238.4,238.39,37.04480682]
[1758310180874,5.13166278,238.4,238.39,37.04480682]
[1758310181054,2.82806887,238.4,238.39,37.04480682]
[1758310187783,2.82806887,238.4,238.39,4.90480682]
[1758310187959,2.82806887,238.4,238.39,37.04480682]
[1758310189762,2.82806887,238.4,238.39,4.90480682]
[1758310189972,2.82806887,238.4,238.39,37.04480682]
[1758310192493,5.13166278,238.4,238.39,37.04480682]
[1758310192660,2.82806887,238.4,238.39,37.04480682]
[1758310192861,5.13166278,238.4,238.39,37.04480682]
[1758310194759,31.2,238.37,238.36,4.19533478]
[1758310194961,36.33166278,238.37,238.36,36.99533478]
[1758310195163,33.50359391,238.37,238.36,4.85533478]
[1758310195368,5.13684656,238.37,238.36,4.19533478]
[1758310195577,36.33684656,238.37,238.36,36.33533478]
[1758310195770,36.33684656,238.37,238.36,4.19533478]
[1758310195974,5.13684656,238.37,238.36,36.33533478]
[1758310197066,5.13684656,238.37,238.36,37.01533478]
[1758310197272,5.13684656,238.37,238.36,36.33533478]
[1758310197864,2.83325265,238.37,238.36,37.01533478]
[1758310198386,2.83325265,238.39,238.36,47.50367174]